[Event "*** SCC Grand Prix: Titled Tuesday Blitz"]
[Site "Chess.com"]
[Date "2020.06.23"]
[Round "6"]
[White "H3nriqueTV"]
[Black "Justinz"]
[Result "1-0"]
[WhiteElo "2221"]
[BlackElo "2380"]
[TimeControl "180+1"]
[EndTime "11:07:06 PDT"]
[Termination "H3nriqueTV won by checkmate"]

1. e4 {[%clk 0:03:00.9]} 1... c5 {[%clk 0:00:16.1]} 2. Nf3 {[%clk 0:02:59.9]}
2... d6 {[%clk 0:00:16.2]} 3. Nc3 {[%clk 0:03:00.1]} 3... Nf6 {[%clk 0:00:15.6]}
4. d4 {[%clk 0:03:00.6]} 4... cxd4 {[%clk 0:00:16.3]} 5. Nxd4 {[%clk 0:03:01.5]}
5... a6 {[%clk 0:00:16.3]} 6. Be2 {[%clk 0:03:01.6]} 6... e5 {[%clk 0:00:16]} 7.
Nb3 {[%clk 0:03:01.5]} 7... Be7 {[%clk 0:00:16.5]} 8. Be3 {[%clk 0:03:02.2]}
8... Be6 {[%clk 0:00:15.5]} 9. O-O {[%clk 0:03:02.9]} 9... Nbd7 {[%clk
0:00:15.9]} 10. a4 {[%clk 0:03:03.6]} 10... Rc8 {[%clk 0:00:16.2]} 11. a5 {[%clk
0:03:04]} 11... O-O {[%clk 0:00:16.6]} 12. Bf3 {[%clk 0:03:04.4]} 12... Re8
{[%clk 0:00:16.4]} 13. Re1 {[%clk 0:03:04.9]} 13... Qc7 {[%clk 0:00:16.3]} 14.
Nd2 {[%clk 0:03:04.3]} 14... Qc6 {[%clk 0:00:16.6]} 15. Nf1 {[%clk 0:03:03.9]}
15... Nc5 {[%clk 0:00:16.2]} 16. Bg5 {[%clk 0:02:57.6]} 16... Red8 {[%clk
0:00:13.7]} 17. Bxf6 {[%clk 0:02:55.5]} 17... Bxf6 {[%clk 0:00:13.3]} 18. Ne3
{[%clk 0:02:56.4]} 18... Be7 {[%clk 0:00:12.6]} 19. Ned5 {[%clk 0:02:56.6]}
19... Bf8 {[%clk 0:00:13.1]} 20. Nb6 {[%clk 0:02:53.7]} 20... Rb8 {[%clk
0:00:12.4]} 21. Ncd5 {[%clk 0:02:50.7]} 21... Bxd5 {[%clk 0:00:12.2]} 22. Nxd5
{[%clk 0:02:50]} 22... Ne6 {[%clk 0:00:12.3]} 23. c3 {[%clk 0:02:49.5]} 23... g6
{[%clk 0:00:12.2]} 24. Bg4 {[%clk 0:02:49]} 24... Nc5 {[%clk 0:00:11.6]} 25. b4
{[%clk 0:02:39.1]} 25... Ne6 {[%clk 0:00:11.3]} 26. Qd2 {[%clk 0:02:36.8]} 26...
Kh8 {[%clk 0:00:10.8]} 27. Rac1 {[%clk 0:02:29.7]} 27... Bg7 {[%clk 0:00:10.8]}
28. h4 {[%clk 0:02:28.8]} 28... Rf8 {[%clk 0:00:10.9]} 29. Qd3 {[%clk
0:02:19.3]} 29... Rbd8 {[%clk 0:00:08.9]} 30. h5 {[%clk 0:02:18.2]} 30... Bh6
{[%clk 0:00:09.1]} 31. Rcd1 {[%clk 0:02:16.3]} 31... Nf4 {[%clk 0:00:10]} 32.
Qg3 {[%clk 0:02:11.8]} 32... Kg7 {[%clk 0:00:09.8]} 33. hxg6 {[%clk 0:02:03.4]}
33... hxg6 {[%clk 0:00:10.7]} 34. Qh4 {[%clk 0:02:00.2]} 34... Qc4 {[%clk
0:00:10.6]} 35. Qf6+ {[%clk 0:01:59.6]} 35... Kh7 {[%clk 0:00:11]} 36. Ne7
{[%clk 0:01:48.7]} 36... Ne6 {[%clk 0:00:09.5]} 37. Nf5 {[%clk 0:01:36.4]} 37...
Bg5 {[%clk 0:00:08.8]} 38. Be2 {[%clk 0:01:23.3]} 38... Qxc3 {[%clk 0:00:07.9]}
39. Rd3 {[%clk 0:01:09.1]} 39... Qxe1+ {[%clk 0:00:06.8]} 40. Bf1 {[%clk
0:01:09.6]} 40... Bxf6 {[%clk 0:00:07.1]} 41. Rh3+ {[%clk 0:01:10.3]} 41... Kg8
{[%clk 0:00:04.7]} 42. Ne3 {[%clk 0:01:11.2]} 42... Bg7 {[%clk 0:00:04]} 43. Nd5
{[%clk 0:01:11.2]} 43... f5 {[%clk 0:00:03.4]} 44. exf5 {[%clk 0:01:09.6]} 44...
Nf4 {[%clk 0:00:03.6]} 45. Re3 {[%clk 0:01:07.2]} 45... Nxd5 {[%clk 0:00:03.2]}
46. Rxe1 {[%clk 0:01:07.3]} 46... gxf5 {[%clk 0:00:03.9]} 47. Bc4 {[%clk
0:01:07.4]} 47... Kh8 {[%clk 0:00:04.6]} 48. Bxd5 {[%clk 0:01:07.7]} 48... Rd7
{[%clk 0:00:04.9]} 49. Re3 {[%clk 0:01:08]} 49... Re7 {[%clk 0:00:05.8]} 50.
Rh3+ {[%clk 0:01:08.1]} 50... Bh6 {[%clk 0:00:05.5]} 51. Rxh6+ {[%clk
0:01:08.7]} 51... Kg7 {[%clk 0:00:06.4]} 52. Rxd6 {[%clk 0:01:09.6]} 52... e4
{[%clk 0:00:06.4]} 53. Bc4 {[%clk 0:01:07.4]} 53... f4 {[%clk 0:00:07.3]} 54.
Kf1 {[%clk 0:01:06.5]} 54... e3 {[%clk 0:00:08.2]} 55. Ke2 {[%clk 0:01:05.7]}
55... exf2+ {[%clk 0:00:07.8]} 56. Kxf2 {[%clk 0:01:06.6]} 56... Rf6 {[%clk
0:00:07]} 57. Rd8 {[%clk 0:01:06.3]} 57... Re4 {[%clk 0:00:06.4]} 58. Bd3 {[%clk
0:01:03.2]} 58... Rxb4 {[%clk 0:00:05.7]} 59. Rd7+ {[%clk 0:01:03.6]} 59... Rf7
{[%clk 0:00:05.4]} 60. Rd6 {[%clk 0:01:04.1]} 60... Rb2+ {[%clk 0:00:04.5]} 61.
Kf3 {[%clk 0:01:04.1]} 61... Rb3 {[%clk 0:00:05.4]} 62. Kg4 {[%clk 0:01:03.5]}
62... Rf6 {[%clk 0:00:05.3]} 63. Rd7+ {[%clk 0:01:03.5]} 63... Kf8 {[%clk
0:00:05.6]} 64. Kg5 {[%clk 0:01:03.1]} 64... Rf7 {[%clk 0:00:04.8]} 65. Rd8+
{[%clk 0:01:03.3]} 65... Ke7 {[%clk 0:00:04.5]} 66. Rd4 {[%clk 0:01:02.8]} 66...
f3 {[%clk 0:00:04.3]} 67. gxf3 {[%clk 0:01:02]} 67... Rxf3 {[%clk 0:00:05.2]}
68. Bf5 {[%clk 0:01:01.5]} 68... Rg3+ {[%clk 0:00:05.1]} 69. Bg4 {[%clk
0:01:01.9]} 69... Ra3 {[%clk 0:00:05.4]} 70. Rd7+ {[%clk 0:01:01.9]} 70... Ke8
{[%clk 0:00:06.1]} 71. Rxb7 {[%clk 0:01:02.5]} 71... Rxa5+ {[%clk 0:00:06.1]}
72. Kf4 {[%clk 0:01:02.6]} 72... Rxg4+ {[%clk 0:00:05.2]} 73. Kxg4 {[%clk
0:01:02.7]} 73... Rb5 {[%clk 0:00:05.6]} 74. Ra7 {[%clk 0:01:02.9]} 74... a5
{[%clk 0:00:05.2]} 75. Kf4 {[%clk 0:01:03.5]} 75... Rb4+ {[%clk 0:00:05.6]} 76.
Ke5 {[%clk 0:01:03]} 76... a4 {[%clk 0:00:06.5]} 77. Kd6 {[%clk 0:01:03.4]}
77... Kd8 {[%clk 0:00:07.4]} 78. Ra8+ {[%clk 0:01:03.1]} 78... Rb8 {[%clk
0:00:05.5]} 79. Rxb8# {[%clk 0:01:03.1]} 1-0

[Event "*** SCC Grand Prix: Titled Tuesday Blitz"]
[Site "Chess.com"]
[Date "2020.06.23"]
[Round "6"]
[White "kuban1991"]
[Black "TigrVShlyape"]
[Result "0-1"]
[WhiteElo "2723"]
[BlackElo "2920"]
[TimeControl "180+1"]
[EndTime "11:07:09 PDT"]
[Termination "TigrVShlyape won by resignation"]

1. Nf3 {[%clk 0:03:00.9]} 1... Nf6 {[%clk 0:02:58.4]} 2. g3 {[%clk 0:03:01]}
2... g6 {[%clk 0:02:58.5]} 3. Bg2 {[%clk 0:03:01.9]} 3... Bg7 {[%clk 0:02:58.9]}
4. O-O {[%clk 0:03:02.8]} 4... O-O {[%clk 0:02:59.4]} 5. c4 {[%clk 0:03:03.4]}
5... d6 {[%clk 0:02:58.1]} 6. Nc3 {[%clk 0:03:03.5]} 6... Nc6 {[%clk 0:02:57.5]}
7. d3 {[%clk 0:03:03.6]} 7... e5 {[%clk 0:02:55.5]} 8. Rb1 {[%clk 0:03:03.2]}
8... h6 {[%clk 0:02:47.6]} 9. b4 {[%clk 0:03:01]} 9... a6 {[%clk 0:02:45.8]} 10.
a4 {[%clk 0:02:58.8]} 10... Be6 {[%clk 0:02:44.3]} 11. e4 {[%clk 0:02:58.5]}
11... Nd7 {[%clk 0:02:40.6]} 12. Nd5 {[%clk 0:02:51.1]} 12... a5 {[%clk
0:02:36.4]} 13. b5 {[%clk 0:02:35.7]} 13... Bxd5 {[%clk 0:01:50.6]} 14. cxd5
{[%clk 0:02:30.5]} 14... Nb4 {[%clk 0:01:50.6]} 15. Ba3 {[%clk 0:02:14.8]} 15...
Nc5 {[%clk 0:01:46.2]} 16. Bxb4 {[%clk 0:02:13.5]} 16... axb4 {[%clk 0:01:46.3]}
17. Rxb4 {[%clk 0:02:14.2]} 17... f5 {[%clk 0:01:41.1]} 18. Nh4 {[%clk
0:02:09.6]} 18... Qf6 {[%clk 0:01:37.7]} 19. exf5 {[%clk 0:01:43.4]} 19... gxf5
{[%clk 0:01:36.1]} 20. b6 {[%clk 0:01:43.4]} 20... cxb6 {[%clk 0:01:30.4]} 21.
Bh3 {[%clk 0:01:07.1]} 21... f4 {[%clk 0:01:22]} 22. Bf5 {[%clk 0:00:53.7]}
22... Qg5 {[%clk 0:01:13.9]} 23. Be4 {[%clk 0:00:48.4]} 23... Ra6 {[%clk
0:00:46.2]} 24. Kh1 {[%clk 0:00:32.6]} 24... fxg3 {[%clk 0:00:28.9]} 25. hxg3
{[%clk 0:00:27.7]} 25... Rfa8 {[%clk 0:00:27.5]} 26. Nf5 {[%clk 0:00:19.7]}
26... Rxa4 {[%clk 0:00:25.9]} 27. Rxa4 {[%clk 0:00:19.4]} 27... Rxa4 {[%clk
0:00:25.7]} 28. Nxd6 {[%clk 0:00:18.9]} 28... Bf8 {[%clk 0:00:25.1]} 29. Nb5
{[%clk 0:00:07.1]} 29... Rb4 {[%clk 0:00:20.6]} 30. Nc7 {[%clk 0:00:06.6]} 30...
Bd6 {[%clk 0:00:17.9]} 31. Ne6 {[%clk 0:00:06.3]} 31... Nxe6 {[%clk 0:00:15.3]}
32. dxe6 {[%clk 0:00:07.2]} 32... Rb2 {[%clk 0:00:13.8]} 33. Kg2 {[%clk
0:00:07.4]} 33... Bc5 {[%clk 0:00:13.4]} 34. Qf3 {[%clk 0:00:07.7]} 34... Qg7
{[%clk 0:00:11.9]} 35. Bd5 {[%clk 0:00:06.4]} 35... Kh8 {[%clk 0:00:11.7]} 36.
Qf7 {[%clk 0:00:06.2]} 36... Qxf7 {[%clk 0:00:11.4]} 37. exf7 {[%clk 0:00:07.1]}
37... Kg7 {[%clk 0:00:12]} 38. Ra1 {[%clk 0:00:06.3]} 38... Rxf2+ {[%clk
0:00:11.7]} 39. Kh3 {[%clk 0:00:06.7]} 39... Rxf7 {[%clk 0:00:10.9]} 40. Bxf7
{[%clk 0:00:05.8]} 40... Kxf7 {[%clk 0:00:11.3]} 41. Ra7 {[%clk 0:00:06.4]}
41... Ke6 {[%clk 0:00:11.1]} 42. Rxb7 {[%clk 0:00:07.3]} 42... Kd5 {[%clk
0:00:11.4]} 43. Kg4 {[%clk 0:00:07.6]} 43... Be3 {[%clk 0:00:11.2]} 44. Kf5
{[%clk 0:00:06.4]} 44... Kd4 {[%clk 0:00:11.4]} 45. Rd7+ {[%clk 0:00:06.4]}
45... Kc3 {[%clk 0:00:11]} 46. Kxe5 {[%clk 0:00:07]} 46... b5 {[%clk 0:00:11.3]}
47. Rb7 {[%clk 0:00:07]} 47... b4 {[%clk 0:00:11]} 48. Ke4 {[%clk 0:00:07.7]}
48... Bf2 {[%clk 0:00:10.3]} 49. g4 {[%clk 0:00:07.2]} 49... b3 {[%clk
0:00:10.7]} 50. d4 {[%clk 0:00:07.7]} 50... b2 {[%clk 0:00:10]} 51. d5 {[%clk
0:00:08.2]} 51... Bc5 {[%clk 0:00:09.8]} 52. Kf5 {[%clk 0:00:07.3]} 52... Bb4
{[%clk 0:00:09.4]} 53. d6 {[%clk 0:00:06.3]} 53... b1=Q+ {[%clk 0:00:09]} 54.
Ke6 {[%clk 0:00:07]} 54... Qe4+ {[%clk 0:00:08.9]} 0-1

[Event "*** SCC Grand Prix: Titled Tuesday Blitz"]
[Site "Chess.com"]
[Date "2020.06.23"]
[Round "6"]
[White "monalize"]
[Black "chigorin28"]
[Result "0-1"]
[WhiteElo "2259"]
[BlackElo "2423"]
[TimeControl "180+1"]
[EndTime "11:07:11 PDT"]
[Termination "chigorin28 won by resignation"]

1. e4 {[%clk 0:03:00.9]} 1... c5 {[%clk 0:02:59.6]} 2. Nf3 {[%clk 0:03:00.6]}
2... d6 {[%clk 0:03:00.2]} 3. d4 {[%clk 0:03:00.6]} 3... cxd4 {[%clk 0:03:01.1]}
4. Qxd4 {[%clk 0:03:00.5]} 4... Nc6 {[%clk 0:03:01]} 5. Qe3 {[%clk 0:03:00.2]}
5... Nf6 {[%clk 0:02:57.8]} 6. h3 {[%clk 0:03:00.1]} 6... e6 {[%clk 0:02:55.8]}
7. Be2 {[%clk 0:03:00]} 7... Be7 {[%clk 0:02:56.2]} 8. O-O {[%clk 0:02:59.9]}
8... O-O {[%clk 0:02:56.9]} 9. Rd1 {[%clk 0:02:59.7]} 9... Qc7 {[%clk
0:02:57.4]} 10. c4 {[%clk 0:02:59.6]} 10... b6 {[%clk 0:02:49.3]} 11. Nc3 {[%clk
0:02:58.8]} 11... a6 {[%clk 0:02:49.6]} 12. b3 {[%clk 0:02:58.4]} 12... Rb8
{[%clk 0:02:47.7]} 13. Bb2 {[%clk 0:02:57.6]} 13... Bb7 {[%clk 0:02:48]} 14.
Rac1 {[%clk 0:02:57.1]} 14... Ne5 {[%clk 0:01:53.9]} 15. Nd4 {[%clk 0:02:55.4]}
15... Rfd8 {[%clk 0:01:50.9]} 16. f4 {[%clk 0:02:49.3]} 16... Ng6 {[%clk
0:01:51.3]} 17. Kh1 {[%clk 0:02:41.9]} 17... Nxf4 {[%clk 0:01:35.1]} 18. Qxf4
{[%clk 0:02:40.2]} 18... e5 {[%clk 0:01:35.5]} 19. Qe3 {[%clk 0:02:30.2]} 19...
exd4 {[%clk 0:01:35.6]} 20. Qxd4 {[%clk 0:02:30.2]} 20... Re8 {[%clk 0:01:32.2]}
21. Nd5 {[%clk 0:02:08.7]} 21... Bxd5 {[%clk 0:01:32.4]} 22. exd5 {[%clk
0:02:04.6]} 22... Bf8 {[%clk 0:01:30.1]} 23. Bf3 {[%clk 0:02:03.9]} 23... Nd7
{[%clk 0:01:28.1]} 24. b4 {[%clk 0:02:00.5]} 24... Ne5 {[%clk 0:01:26.8]} 25.
Be4 {[%clk 0:01:59.8]} 25... Qd8 {[%clk 0:01:15.5]} 26. Bc2 {[%clk 0:01:45.5]}
26... Qg5 {[%clk 0:01:09.1]} 27. Bb3 {[%clk 0:01:43.7]} 27... g6 {[%clk
0:00:56.4]} 28. Qf2 {[%clk 0:01:32.8]} 28... Bg7 {[%clk 0:00:55.1]} 29. Rc2
{[%clk 0:01:27]} 29... a5 {[%clk 0:00:36]} 30. a3 {[%clk 0:01:19.7]} 30... axb4
{[%clk 0:00:36.3]} 31. axb4 {[%clk 0:01:19.2]} 31... Nd7 {[%clk 0:00:36.9]} 32.
Ba4 {[%clk 0:01:16.1]} 32... Re7 {[%clk 0:00:34.2]} 33. Bxg7 {[%clk 0:00:53.1]}
33... Kxg7 {[%clk 0:00:34.5]} 34. Bxd7 {[%clk 0:00:52.8]} 34... Rxd7 {[%clk
0:00:35.1]} 35. c5 {[%clk 0:00:52]} 35... bxc5 {[%clk 0:00:34.8]} 36. bxc5
{[%clk 0:00:51.7]} 36... dxc5 {[%clk 0:00:35.4]} 37. Qxc5 {[%clk 0:00:51.2]}
37... Rbd8 {[%clk 0:00:34.2]} 38. Rcd2 {[%clk 0:00:50.7]} 38... Rd6 {[%clk
0:00:33.8]} 39. Qc4 {[%clk 0:00:49.6]} 39... h5 {[%clk 0:00:34.3]} 40. Rd4
{[%clk 0:00:49.2]} 40... Kh7 {[%clk 0:00:34.7]} 41. Qb3 {[%clk 0:00:46.2]} 41...
R8d7 {[%clk 0:00:34.5]} 42. Qf3 {[%clk 0:00:45.3]} 42... Rf6 {[%clk 0:00:33.6]}
43. Qd3 {[%clk 0:00:42.1]} 43... Rf2 {[%clk 0:00:32.4]} 44. Rg1 {[%clk
0:00:35.4]} 44... Qf6 {[%clk 0:00:31.1]} 45. d6 {[%clk 0:00:33.8]} 45... Rf5
{[%clk 0:00:24.4]} 46. Rd1 {[%clk 0:00:32.3]} 46... Rf2 {[%clk 0:00:22.9]} 47.
Rd5 {[%clk 0:00:31.8]} 47... Kg8 {[%clk 0:00:20.3]} 48. Qg3 {[%clk 0:00:30.5]}
48... Rf5 {[%clk 0:00:16.2]} 49. R5d2 {[%clk 0:00:28.6]} 49... Qe6 {[%clk
0:00:16.8]} 50. Qd3 {[%clk 0:00:26.1]} 50... Re5 {[%clk 0:00:17]} 51. Qf1 {[%clk
0:00:24.6]} 51... Re4 {[%clk 0:00:16]} 52. Qf2 {[%clk 0:00:23.7]} 52... Re3
{[%clk 0:00:15.9]} 53. Kg1 {[%clk 0:00:22.5]} 53... Re4 {[%clk 0:00:15.1]} 54.
Qe3 {[%clk 0:00:20.4]} 54... Rxe3 {[%clk 0:00:15.1]} 0-1

[Event "*** SCC Grand Prix: Titled Tuesday Blitz"]
[Site "Chess.com"]
[Date "2020.06.23"]
[Round "6"]
[White "Shuvalov"]
[Black "GelmanAlexander"]
[Result "0-1"]
[WhiteElo "2445"]
[BlackElo "2561"]
[TimeControl "180+1"]
[EndTime "11:07:12 PDT"]
[Termination "GelmanAlexander won by checkmate"]

1. d4 {[%clk 0:03:00.9]} 1... Nf6 {[%clk 0:02:59.7]} 2. c4 {[%clk 0:02:59.8]}
2... c5 {[%clk 0:02:59.6]} 3. Nf3 {[%clk 0:02:59]} 3... cxd4 {[%clk 0:02:59.5]}
4. Nxd4 {[%clk 0:02:59.9]} 4... b6 {[%clk 0:02:57.7]} 5. Nc3 {[%clk 0:02:58.3]}
5... Bb7 {[%clk 0:02:58]} 6. f3 {[%clk 0:02:55.8]} 6... d6 {[%clk 0:02:57.9]} 7.
e4 {[%clk 0:02:55.9]} 7... a6 {[%clk 0:02:52.3]} 8. Be3 {[%clk 0:02:55.7]} 8...
e6 {[%clk 0:02:52.4]} 9. Be2 {[%clk 0:02:55.8]} 9... Rg8 {[%clk 0:02:43.6]} 10.
Qd2 {[%clk 0:02:53.4]} 10... h6 {[%clk 0:02:43]} 11. O-O-O {[%clk 0:02:39.5]}
11... Nbd7 {[%clk 0:02:42.1]} 12. Kb1 {[%clk 0:02:39.5]} 12... Qc7 {[%clk
0:02:39]} 13. Rc1 {[%clk 0:02:38.6]} 13... Be7 {[%clk 0:02:33.8]} 14. h4 {[%clk
0:02:38]} 14... Ne5 {[%clk 0:02:17.9]} 15. Na4 {[%clk 0:02:25.9]} 15... Nfd7
{[%clk 0:02:11.5]} 16. g4 {[%clk 0:02:07.5]} 16... Nc5 {[%clk 0:02:10.7]} 17.
Nc3 {[%clk 0:02:06.3]} 17... g5 {[%clk 0:01:53.5]} 18. hxg5 {[%clk 0:02:04.5]}
18... hxg5 {[%clk 0:01:54.1]} 19. Rh7 {[%clk 0:02:02.4]} 19... Ncd7 {[%clk
0:01:52.1]} 20. b3 {[%clk 0:01:54.1]} 20... Nf6 {[%clk 0:01:51.1]} 21. Rh6
{[%clk 0:01:51.1]} 21... Nfd7 {[%clk 0:01:51.4]} 22. Rh5 {[%clk 0:01:37.6]}
22... Qd8 {[%clk 0:01:38.9]} 23. Rch1 {[%clk 0:01:33.9]} 23... Bf6 {[%clk
0:01:34.4]} 24. Rh6 {[%clk 0:01:30.2]} 24... Qe7 {[%clk 0:01:30.6]} 25. Na4
{[%clk 0:01:26.7]} 25... Rb8 {[%clk 0:01:23.5]} 26. Nc3 {[%clk 0:01:25.8]} 26...
Rc8 {[%clk 0:01:22.8]} 27. Rc1 {[%clk 0:01:21.1]} 27... Ng6 {[%clk 0:01:08.7]}
28. Rh5 {[%clk 0:01:17]} 28... Nf4 {[%clk 0:01:07.1]} 29. Bxf4 {[%clk
0:01:12.8]} 29... gxf4 {[%clk 0:01:08]} 30. Na4 {[%clk 0:00:58.5]} 30... Be5
{[%clk 0:01:01.3]} 31. Nc2 {[%clk 0:00:56.4]} 31... Bh8 {[%clk 0:00:47.8]} 32.
Nb4 {[%clk 0:00:54.6]} 32... Qf6 {[%clk 0:00:45.6]} 33. Qb2 {[%clk 0:00:53.9]}
33... Ne5 {[%clk 0:00:32]} 34. Nxb6 {[%clk 0:00:45.8]} 34... Rb8 {[%clk
0:00:32.4]} 35. Nd3 {[%clk 0:00:41.1]} 35... Bxe4 {[%clk 0:00:22.4]} 36. fxe4
{[%clk 0:00:38.6]} 36... Nxd3 {[%clk 0:00:18.1]} 37. Qxf6 {[%clk 0:00:38]} 37...
Bxf6 {[%clk 0:00:18.9]} 38. Bxd3 {[%clk 0:00:38.1]} 38... Rxb6 {[%clk
0:00:19.5]} 39. Kc2 {[%clk 0:00:36.9]} 39... Rxg4 {[%clk 0:00:18.5]} 40. Rf1
{[%clk 0:00:35.5]} 40... Rg2+ {[%clk 0:00:18]} 41. Kd1 {[%clk 0:00:34]} 41...
Be5 {[%clk 0:00:18.4]} 42. Be2 {[%clk 0:00:33.5]} 42... a5 {[%clk 0:00:18.1]}
43. Rf3 {[%clk 0:00:29.8]} 43... a4 {[%clk 0:00:18.4]} 44. Rhh3 {[%clk
0:00:28.6]} 44... axb3 {[%clk 0:00:18.6]} 45. axb3 {[%clk 0:00:29.5]} 45... Ra6
{[%clk 0:00:18.9]} 46. c5 {[%clk 0:00:18.9]} 46... Ra1+ {[%clk 0:00:18.1]} 47.
Kd2 {[%clk 0:00:19.5]} 47... Ra2+ {[%clk 0:00:18.1]} 48. Kd3 {[%clk 0:00:20.2]}
48... Rgxe2 {[%clk 0:00:17.5]} 49. Kc4 {[%clk 0:00:20.8]} 49... Rec2+ {[%clk
0:00:17.1]} 50. Kb5 {[%clk 0:00:21.2]} 50... Rxc5+ {[%clk 0:00:17.3]} 51. Kb6
{[%clk 0:00:21.3]} 51... Ra8 {[%clk 0:00:16.8]} 52. Kb7 {[%clk 0:00:20.8]} 52...
Rac8 {[%clk 0:00:16.7]} 53. b4 {[%clk 0:00:20.9]} 53... R5c7+ {[%clk 0:00:16.5]}
54. Kb6 {[%clk 0:00:21.3]} 54... Bd4+ {[%clk 0:00:16.8]} 55. Kb5 {[%clk
0:00:21.1]} 55... Rc1 {[%clk 0:00:15.2]} 56. Ra3 {[%clk 0:00:19.6]} 56... R1c3
{[%clk 0:00:12.4]} 57. Raxc3 {[%clk 0:00:18.9]} 57... Rxc3 {[%clk 0:00:13]} 58.
Ka6 {[%clk 0:00:17.5]} 58... Rxh3 {[%clk 0:00:12.5]} 59. b5 {[%clk 0:00:18]}
59... Ra3+ {[%clk 0:00:11.8]} 60. Kb7 {[%clk 0:00:18]} 60... f3 {[%clk
0:00:12.1]} 61. Kc6 {[%clk 0:00:18.9]} 61... f2 {[%clk 0:00:12.4]} 62. Kxd6
{[%clk 0:00:19]} 62... f1=Q {[%clk 0:00:12.6]} 63. b6 {[%clk 0:00:18.8]} 63...
Qc4 {[%clk 0:00:12.2]} 64. b7 {[%clk 0:00:18.3]} 64... Qc5# {[%clk 0:00:12.5]}
0-1

[Event "*** SCC Grand Prix: Titled Tuesday Blitz"]
[Site "Chess.com"]
[Date "2020.06.23"]
[Round "6"]
[White "Fusikk"]
[Black "etesungam"]
[Result "1-0"]
[WhiteElo "2550"]
[BlackElo "2414"]
[TimeControl "180+1"]
[EndTime "11:07:14 PDT"]
[Termination "Fusikk won by checkmate"]

1. e4 {[%clk 0:03:00.9]} 1... e5 {[%clk 0:02:59.3]} 2. Nf3 {[%clk 0:03:00.7]}
2... Nc6 {[%clk 0:02:59.8]} 3. Bb5 {[%clk 0:03:00.9]} 3... Bc5 {[%clk
0:02:59.9]} 4. O-O {[%clk 0:02:58.8]} 4... Nf6 {[%clk 0:02:59.5]} 5. d3 {[%clk
0:02:56.5]} 5... d6 {[%clk 0:02:55.5]} 6. c3 {[%clk 0:02:55.7]} 6... h6 {[%clk
0:02:51.5]} 7. Re1 {[%clk 0:02:51.3]} 7... O-O {[%clk 0:02:49.9]} 8. h3 {[%clk
0:02:50.2]} 8... Bb6 {[%clk 0:02:44.8]} 9. a4 {[%clk 0:02:45]} 9... a6 {[%clk
0:02:39.7]} 10. Bxc6 {[%clk 0:02:44.5]} 10... bxc6 {[%clk 0:02:39.9]} 11. d4
{[%clk 0:02:45.4]} 11... Qe7 {[%clk 0:02:22.7]} 12. dxe5 {[%clk 0:02:34.7]}
12... dxe5 {[%clk 0:02:23.6]} 13. a5 {[%clk 0:02:35.2]} 13... Ba7 {[%clk
0:02:21.2]} 14. Be3 {[%clk 0:02:35.2]} 14... Bxe3 {[%clk 0:02:18.7]} 15. Rxe3
{[%clk 0:02:36.1]} 15... Rb8 {[%clk 0:02:18.1]} 16. Qc2 {[%clk 0:02:32.7]} 16...
Be6 {[%clk 0:02:14.8]} 17. Nbd2 {[%clk 0:02:32.2]} 17... Nd7 {[%clk 0:02:11.5]}
18. Rb1 {[%clk 0:02:19.8]} 18... f6 {[%clk 0:02:08]} 19. Ne1 {[%clk 0:02:13.6]}
19... Rb5 {[%clk 0:01:54.6]} 20. b4 {[%clk 0:02:08.1]} 20... c5 {[%clk
0:01:50.4]} 21. Nd3 {[%clk 0:02:07.1]} 21... cxb4 {[%clk 0:01:44.8]} 22. cxb4
{[%clk 0:02:07.2]} 22... c5 {[%clk 0:01:31.1]} 23. bxc5 {[%clk 0:01:54.2]} 23...
Rxb1+ {[%clk 0:01:13.4]} 24. Nxb1 {[%clk 0:01:55.1]} 24... Rc8 {[%clk
0:01:13.3]} 25. h4 {[%clk 0:01:07.4]} 25... Nxc5 {[%clk 0:01:12.3]} 26. Nxc5
{[%clk 0:01:07.8]} 26... Qxc5 {[%clk 0:01:11.7]} 27. Rc3 {[%clk 0:01:08.7]}
27... Qf8 {[%clk 0:01:05.2]} 28. Rxc8 {[%clk 0:01:07.2]} 28... Qxc8 {[%clk
0:01:03.5]} 29. Qxc8+ {[%clk 0:01:06.7]} 29... Bxc8 {[%clk 0:01:04.4]} 30. f3
{[%clk 0:01:02.8]} 30... Kf7 {[%clk 0:01:04.6]} 31. Kf2 {[%clk 0:01:03.2]} 31...
Ke6 {[%clk 0:01:04.8]} 32. Ke3 {[%clk 0:01:03.4]} 32... Kd6 {[%clk 0:01:05.1]}
33. Nc3 {[%clk 0:00:58.6]} 33... Kc5 {[%clk 0:00:57.8]} 34. Nd5 {[%clk
0:00:55.8]} 34... Kb5 {[%clk 0:00:51.8]} 35. Nc7+ {[%clk 0:00:55.8]} 35... Kxa5
{[%clk 0:00:49.2]} 36. Ne8 {[%clk 0:00:56.7]} 36... Kb4 {[%clk 0:00:46]} 37.
Nxg7 {[%clk 0:00:56.5]} 37... Kb3 {[%clk 0:00:38.6]} 38. Kd2 {[%clk 0:00:56.5]}
38... Kb2 {[%clk 0:00:37.9]} 39. Nh5 {[%clk 0:00:55.4]} 39... a5 {[%clk
0:00:37.3]} 40. Nxf6 {[%clk 0:00:55.3]} 40... a4 {[%clk 0:00:25.5]} 41. Nd5
{[%clk 0:00:55]} 41... a3 {[%clk 0:00:25.6]} 42. Nc3 {[%clk 0:00:54.4]} 42... a2
{[%clk 0:00:25.6]} 43. Nxa2 {[%clk 0:00:53.7]} 43... Kxa2 {[%clk 0:00:26.5]} 44.
Kc3 {[%clk 0:00:52.6]} 44... Be6 {[%clk 0:00:23.3]} 45. Kb4 {[%clk 0:00:47.4]}
45... Kb2 {[%clk 0:00:23]} 46. Kc5 {[%clk 0:00:47.6]} 46... Kc2 {[%clk
0:00:22.8]} 47. Kd6 {[%clk 0:00:47.5]} 47... Bc4 {[%clk 0:00:19.4]} 48. Kxe5
{[%clk 0:00:46.2]} 48... Kd3 {[%clk 0:00:19.7]} 49. f4 {[%clk 0:00:42.7]} 49...
Ke3 {[%clk 0:00:18.5]} 50. g4 {[%clk 0:00:42.4]} 50... Kf3 {[%clk 0:00:16.9]}
51. g5 {[%clk 0:00:42.6]} 51... hxg5 {[%clk 0:00:17.3]} 52. hxg5 {[%clk
0:00:41.9]} 52... Kg4 {[%clk 0:00:17.8]} 53. g6 {[%clk 0:00:41.7]} 53... Kh5
{[%clk 0:00:17.3]} 54. Kf6 {[%clk 0:00:40.4]} 54... Kh6 {[%clk 0:00:14]} 55. f5
{[%clk 0:00:40.2]} 55... Bd3 {[%clk 0:00:11.8]} 56. e5 {[%clk 0:00:39.9]} 56...
Bc4 {[%clk 0:00:10.1]} 57. e6 {[%clk 0:00:39.6]} 57... Bb5 {[%clk 0:00:11]} 58.
g7 {[%clk 0:00:36.5]} 58... Kh7 {[%clk 0:00:10]} 59. Kf7 {[%clk 0:00:36.7]}
59... Be8+ {[%clk 0:00:09.1]} 60. Kf8 {[%clk 0:00:35]} 60... Bf7 {[%clk
0:00:08.9]} 61. exf7 {[%clk 0:00:30]} 61... Kh6 {[%clk 0:00:08.9]} 62. g8=Q
{[%clk 0:00:28.9]} 62... Kh5 {[%clk 0:00:09.8]} 63. Qg3 {[%clk 0:00:28.2]} 63...
Kh6 {[%clk 0:00:09.8]} 64. Qg6# {[%clk 0:00:29.1]} 1-0